bitfinex/quotes_ETHUSD_20240924
["timestamp","ask_amount","ask_price","bid_price","bid_amount"]
[1727143293234,3.79567,2634.6,2634.3,0.785]
[1727143295296,3.79578,2634.5,2634.3,0.785]
[1727143296233,3.79616,2634.3,2633.9,0.785]
[1727143296391,3.79593,2634.4,2633.9,0.785]
[1727143296392,3.79623,2634.2,2633.9,0.785]
[1727143296596,3.79636,2634.1,2633.9,0.785]
[1727143299045,3.79636,2634.1,2633.9,0.78393166]
[1727143301768,3.79579,2634.5,2633.9,0.78393166]
[1727143301922,3.79579,2634.5,2633.9,1.18271067]
[1727143302442,3.79593,2634.4,2633.9,1.18271067]
[1727143303955,3.7956,2634.7,2634.0,3.87231617]
[1727143304255,3.7956,2634.7,2634.1,0.8205]
[1727143304615,3.79526,2634.9,2634.1,0.89642009]
[1727143304855,3.79538,2634.8,2634.2,3.79613]
[1727143305066,3.79526,2634.9,2634.2,3.79613]
[1727143305067,3.79551,2634.7,2634.2,3.79613]
[1727143306160,3.79551,2634.7,2634.1,0.8205]
[1727143306161,3.79572,2634.6,2634.1,0.8205]
[1727143306852,3.79551,2634.7,2634.1,0.8205]
[1727143307056,3.79551,2634.7,2634.1,1.41058947]
[1727143308523,3.79551,2634.7,2634.1,5.20685947]
[1727143308747,3.79551,2634.7,2634.1,1.41058947]
[1727143308950,7.59112,2634.7,2634.1,1.48650521]
[1727143309151,7.59112,2634.7,2634.1,1.41058947]
[1727143309359,3.79551,2634.7,2634.1,1.41058947]
[1727143309560,3.79551,2634.7,2634.1,1.48650528]
[1727143310060,3.79551,2634.7,2634.1,1.41058947]
[1727143311461,7.59111,2634.7,2634.1,1.41058947]
[1727143312124,3.79551,2634.7,2634.1,1.41058947]
[1727143312362,0.7583,2635.0,2634.1,0.8205]
[1727143312728,3.79598,2634.4,2634.1,0.8205]
[1727143315194,3.79608,2634.3,2634.1,0.8205]
[1727143315470,3.79598,2634.4,2634.1,0.8205]
[1727143316168,7.59203,2634.4,2634.1,0.8205]
[1727143316369,7.59202,2634.4,2634.1,0.8205]
[1727143316574,3.79598,2634.4,2634.1,0.8205]
[1727143316771,3.79612,2634.3,2634.1,0.8205]
[1727143318598,3.79621,2634.2,2634.1,0.8205]
[1727143318903,3.79621,2634.2,2633.8,0.8205]
[1727143319401,4.555317,2634.3,2633.8,0.8205]
[1727143320070,8.351477,2634.3,2633.8,0.8205]
[1727143320268,4.555317,2634.3,2633.8,0.8205]
[1727143320720,7.59232,2634.3,2633.8,0.8205]
[1727143321023,3.79612,2634.3,2633.8,0.8205]
[1727143323568,3.79623,2634.2,2633.8,0.8205]
[1727143323882,3.79638,2634.1,2633.8,0.8205]
[1727143324070,3.79655,2634.0,2633.7,0.0377417]
[1727143324471,7.972488,2634.1,2633.7,0.0377417]
[1727143324707,3.79652,2634.0,2633.7,0.0377417]
[1727143324909,3.79633,2634.2,2633.7,0.0377417]
[1727143325098,3.79638,2634.1,2633.7,0.0377417]
[1727143325591,7.59236,2634.3,2633.8,0.7531]
[1727143325796,3.79615,2634.3,2633.8,0.7531]
[1727143326370,3.79625,2634.2,2633.8,0.7531]
[1727143326569,3.79615,2634.3,2633.8,0.7531]
[1727143326820,3.79639,2634.1,2633.8,0.7531]
[1727143327112,7.59289,2634.1,2633.8,0.7531]
[1727143327317,3.79661,2634.0,2633.8,0.7531]
[1727143327525,3.79679,2633.8,2633.7,0.0377417]
[1727143327679,4.556134,2633.8,2633.7,0.0377417]
[1727143327880,0.759344,2633.8,2633.7,0.0377417]
[1727143328181,3.79679,2633.8,2633.7,0.0377417]
[1727143328723,4.57819,2633.8,2633.7,0.0377417]
[1727143328892,6.55208778,2633.8,2633.7,0.0377417]
[1727143329094,4.57819,2633.8,2633.7,0.0377417]
[1727143329406,6.55217332,2633.8,2633.7,0.0377417]
[1727143330120,6.55321541,2633.8,2633.7,0.0377417]
[1727143331318,4.57819,2633.8,2633.7,0.0377417]
[1727143331500,6.55321541,2633.8,2633.7,0.0377417]
[1727143332296,4.57819,2633.8,2633.7,0.0377417]
[1727143332629,8.29430672,2633.8,2633.7,0.0377417]
[1727143332775,10.66433721,2633.8,2633.7,0.0377417]
[1727143333415,13.66433721,2633.8,2633.7,0.0377417]
[1727143334907,13.66405216,2633.8,2633.7,0.0377417]
[1727143336901,11.29430672,2633.8,2633.7,0.0377417]
[1727143340716,8.12819,2633.8,2633.7,0.0377417]
[1727143341292,10.10020955,2633.8,2633.7,0.0377417]
[1727143342133,8.12819,2633.8,2633.7,0.0377417]
[1727143342313,10.09988302,2633.8,2633.7,0.0377417]
[1727143342708,8.12819,2633.8,2633.7,0.0377417]
[1727143343238,16.10080764,2633.8,2633.7,0.0377417]
[1727143343459,8.17354,2633.0,2632.9,0.0377417]
[1727143343614,13.31010894,2633.0,2632.9,0.0377417]
[1727143344055,13.70419938,2633.0,2632.9,0.0377417]
[1727143344208,11.33965672,2633.0,2632.9,0.0377417]
[1727143345315,13.3071949,2633.0,2632.9,0.0377417]
[1727143346746,8.17354,2633.0,2632.9,0.0377417]
[1727143348107,6.79794,2633.0,2632.9,0.0377417]
[1727143349442,3.79794,2633.0,2632.9,0.0377417]
[1727143351318,8.17354,2633.0,2632.9,0.0377417]
[1727143354117,8.5686213,2633.0,2632.9,0.0377417]
[1727143355747,10.5686213,2633.0,2632.9,0.0377417]
[1727143356063,14.5676213,2633.0,2632.9,0.0377417]
[1727143359570,19.69600389,2633.0,2632.9,0.0377417]
[1727143359772,17.73373802,2633.0,2632.9,0.0377417]
[1727143361162,19.69547567,2633.0,2632.9,0.0377417]
[1727143363577,19.69444097,2633.0,2632.9,0.0377417]
[1727143363761,17.73373802,2633.0,2632.9,0.0377417]
[1727143364129,17.73373802,2633.0,2632.1,0.0377417]
[1727143364130,3.7991,2632.2,2632.1,0.0377417]
[1727143364346,11.27502272,2632.2,2632.1,0.0377417]
[1727143365069,12.4786924,2632.2,2632.1,0.0377417]
[1727143367034,11.6701924,2632.2,2632.1,0.0377417]
[1727143367285,8.108906,2632.2,2632.1,0.0377417]
[1727143367562,11.27502272,2632.2,2632.1,0.0377417]
[1727143367871,11.67016063,2632.2,2632.1,0.0377417]
[1727143368039,14.47866063,2632.2,2632.1,0.0377417]
[1727143368244,14.47866063,2632.2,2631.4,0.0377417]
[1727143368245,3.79996,2631.6,2631.4,0.0377417]
[1727143368445,3.80011,2631.5,2631.4,0.0377417]
[1727143368640,7.51622672,2631.5,2631.4,0.0377417]
[1727143368840,10.51622672,2631.5,2631.4,0.0377417]
[1727143369244,11.32472672,2631.5,2631.4,0.0377417]
[1727143369475,12.08453272,2631.5,2631.4,0.0377417]
[1727143372945,11.27603272,2631.5,2631.4,0.0377417]
[1727143378341,11.67120825,2631.5,2631.4,0.0377417]
[1727143379039,8.67120825,2631.5,2631.4,0.0377417]
[1727143380187,12.46120825,2631.5,2631.4,0.0377417]
[1727143381699,9.29509153,2631.5,2631.4,0.0377417]
[1727143381845,12.46120825,2631.5,2631.4,0.0377417]
[1727143383498,12.46120825,2631.5,2630.6,0.0377417]
[1727143383499,3.80126,2630.7,2630.6,0.0377417]
[1727143383649,3.80126,2630.7,2630.4,0.7504]
[1727143383650,10.51766672,2630.5,2630.4,0.7504]
[1727143383845,7.35155,2630.5,2630.4,0.7504]
[1727143387283,7.35155,2630.5,2630.3,0.0090747]
[1727143387284,7.3517,2630.4,2630.3,0.0090747]
[1727143389357,4.3517,2630.4,2630.3,0.0090747]
[1727143390170,7.3517,2630.4,2630.3,0.0090747]
[1727143390379,12.06762272,2630.4,2630.3,0.0090747]
[1727143390690,12.46221556,2630.4,2630.3,0.0090747]
[1727143391674,11.67221556,2630.4,2630.3,0.0090747]
[1727143391907,10.91240956,2630.4,2630.3,0.0090747]
[1727143392106,11.30781672,2630.4,2630.3,0.0090747]
[1727143392517,11.70210244,2630.4,2630.3,0.0090747]
[1727143396102,7.19598572,2630.4,2630.3,0.0090747]
[1727143396320,6.8017,2630.4,2630.3,0.0090747]
[1727143397621,7.3517,2630.4,2630.3,0.0090747]
[1727143398733,10.51781672,2630.4,2630.3,0.0090747]
[1727143401556,7.35213,2630.1,2630.0,7.70498627]
[1727143403950,11.29824672,2630.1,2630.0,7.70498627]
[1727143406479,10.51824672,2630.1,2630.0,7.70498627]
[1727143407972,6.80213,2630.1,2630.0,8.52018627]
[1727143409397,7.35213,2630.1,2630.0,8.52018627]
[1727143412598,7.35213,2630.1,2630.0,8.47018627]
[1727143413409,7.35213,2630.1,2630.0,7.65498627]
[1727143413711,8.52628375,2630.1,2630.0,7.65498627]
[1727143413952,10.48517182,2630.1,2630.0,7.65498627]
[1727143414213,12.48517182,2630.1,2630.0,7.65498627]
[1727143414417,12.48517182,2630.1,2630.0,6.07621115]
[1727143414418,9.74628375,2630.1,2630.0,6.07621115]
[1727143414622,17.28251732,2630.1,2630.0,6.07621115]
[1727143414916,17.28251732,2630.1,2629.2,0.8684051]
[1727143414917,3.80329,2629.3,2629.2,0.0532051]
[1727143415228,13.26114754,2629.3,2629.2,0.0532051]
[1727143415511,11.29940672,2629.3,2629.2,0.0532051]
[1727143415711,13.65455261,2629.3,2629.2,0.0532051]
[1727143416884,11.29940672,2629.3,2629.2,0.0532051]
[1727143418200,13.25878308,2629.3,2629.2,0.0532051]
[1727143419133,13.2589293,2629.3,2629.2,0.0532051]
[1727143419338,11.29940672,2629.3,2629.2,0.0532051]
[1727143420749,13.65077161,2629.3,2629.2,0.0532051]
[1727143421042,11.29940672,2629.3,2629.2,0.0532051]
[1727143421341,13.64764665,2629.3,2629.2,0.0532051]
[1727143421548,11.29940672,2629.3,2629.2,0.0532051]
[1727143421708,13.64805755,2629.3,2629.2,0.0532051]
[1727143422038,11.29940672,2629.3,2629.2,0.0532051]
[1727143422240,13.6470886,2629.3,2629.2,0.0532051]
[1727143422414,11.29940672,2629.3,2629.2,0.0532051]
[1727143422816,13.64754381,2629.3,2629.2,0.0532051]
[1727143423242,11.29940672,2629.3,2629.2,0.0532051]
[1727143423545,13.64754381,2629.3,2629.2,0.0532051]
[1727143423703,13.64826907,2629.3,2629.2,0.0532051]
[1727143423898,11.69272441,2629.3,2629.2,0.0532051]
[1727143425215,16.04019097,2629.3,2629.2,0.0532051]
[1727143427443,13.69272441,2629.3,2629.2,0.0532051]
[1727143429934,14.09030581,2629.3,2629.2,0.0532051]
[1727143430439,16.43585423,2629.3,2629.2,0.0532051]
[1727143430608,16.5022006,2629.3,2629.2,0.0532051]
[1727143431706,36.3722006,2629.3,2629.2,0.0532051]
[1727143432356,34.02665218,2629.3,2629.2,0.0532051]
[1727143436618,36.37175586,2629.3,2629.2,0.0532051]
[1727143438415,34.02665218,2629.3,2629.2,0.0532051]
[1727143439464,4.66053546,2629.3,2629.2,0.8510051]
[1727143439624,0.3975814,2629.3,2629.2,0.8510051]
[1727143439821,3.80305,2629.5,2629.2,0.45491728]
[1727143440134,3.80305,2629.5,2629.3,0.7978]
[1727143440334,3.80291,2629.6,2629.3,0.7978]
[1727143440520,3.8027,2629.8,2629.3,0.7978]
[1727143440824,3.8027,2629.8,2629.4,0.7978]
[1727143441019,3.80271,2629.7,2629.6,0.7978]
[1727143441542,3.8027,2629.8,2629.6,0.7978]
[1727143441778,3.80232,2630.0,2629.6,0.7978]
[1727143442052,3.80206,2630.2,2629.6,0.7978]
[1727143442270,3.80173,2630.4,2629.7,0.7978]
[1727143442419,3.80199,2630.2,2629.9,0.7978]
[1727143442852,3.80228,2630.0,2629.9,0.7978]
[1727143444001,4.35217,2630.1,2629.9,0.7978]
[1727143444142,3.80199,2630.2,2629.9,0.7978]
[1727143446132,6.80171,2630.4,2629.9,0.7978]
[1727143446327,6.80171,2630.4,2630.0,0.7978]
[1727143446545,3.80186,2630.3,2630.0,0.7978]
[1727143446774,3.80114,2630.8,2630.0,0.7978]
[1727143447069,3.8009,2631.0,2630.3,3.80182]
[1727143447267,3.8009,2631.0,2630.4,0.69679367]
[1727143447575,3.8009,2631.0,2630.5,0.7978]
[1727143447921,3.80059,2631.2,2630.6,0.7978]
[1727143448166,3.8005,2631.3,2630.8,0.7978]
[1727143448464,3.80026,2631.4,2630.9,0.7978]
[1727143449027,3.80055,2631.2,2630.9,0.7978]
[1727143450950,3.80083,2631.0,2630.9,0.7978]
[1727143451295,3.80055,2631.2,2630.9,0.7978]
[1727143451579,3.8003,2631.4,2630.9,0.7978]
[1727143451880,3.80041,2631.3,2630.9,0.7978]
[1727143452262,3.8004,2631.3,2630.9,0.7978]
[1727143452460,3.8003,2631.4,2631.0,0.7978]
[1727143453151,7.60069,2631.4,2631.0,0.7978]
[1727143453358,3.80045,2631.3,2631.0,0.7978]
[1727143454084,3.80069,2631.1,2631.0,0.7978]
[1727143460892,6.80002,2631.6,2631.0,0.7978]
[1727143460893,7.60064,2631.4,2631.0,0.7978]
[1727143461103,3.80015,2631.5,2631.0,0.7978]
[1727143461396,3.80039,2631.4,2631.1,0.7852]
[1727143465128,6.80002,2631.6,2631.1,0.7852]
[1727143465291,4.6222708,2632.1,2631.2,0.86120181]
[1727143465292,3.79985,2631.7,2631.2,0.86120181]
[1727143465480,3.79968,2631.8,2631.4,0.7852]
[1727143465876,10.59895,2632.0,2631.4,0.7852]
[1727143466077,6.79953,2631.9,2631.4,0.7852]
[1727143466520,3.79945,2632.0,2631.4,6.96627672]
[1727143466674,3.79945,2632.0,2631.6,0.7852]
[1727143466877,7.59897,2632.0,2631.6,0.7852]
[1727143467124,3.79945,2632.0,2631.6,0.7852]
[1727143468300,7.59898,2632.0,2631.6,0.7852]
[1727143468510,3.79945,2632.0,2631.6,0.7852]
[1727143468826,3.79945,2632.0,2631.7,0.7852]
[1727143469310,3.79955,2631.9,2631.7,0.7852]
[1727143470214,3.79945,2632.0,2631.7,0.7852]
[1727143470418,0.0089108,2632.1,2631.7,0.7852]
[1727143470584,0.0089108,2632.1,2631.9,0.7852]
[1727143471616,0.0089108,2632.1,2632.0,1.25128431]
[1727143471783,0.0089108,2632.1,2632.0,0.7852]
[1727143472334,0.0089108,2632.1,2632.0,7.75070672]
[1727143472485,0.0089108,2632.1,2632.0,7.82668097]
[1727143472981,3.8081508,2632.1,2632.0,0.7852]
[1727143473215,3.79979,2631.8,2631.4,0.7852]
[1727143473421,0.0089108,2632.1,2631.4,0.7852]
[1727143473729,3.79964,2631.9,2631.4,0.7852]
[1727143474495,3.79995,2631.7,2631.4,1.56037667]
[1727143474694,3.80011,2631.5,2631.4,0.7852]
[1727143476134,3.80087,2631.0,2630.8,0.7852]
[1727143476783,3.80098,2630.9,2630.8,0.7852]
[1727143476983,3.80061,2631.2,2630.8,0.7852]
[1727143477185,3.80032,2631.4,2630.9,0.7852]
[1727143477388,3.80032,2631.4,2630.9,1.18033167]
[1727143478128,3.80066,2631.2,2630.9,1.18033167]
[1727143478621,3.80083,2631.0,2630.9,0.7852]
[1727143479039,3.80066,2631.2,2630.9,0.7852]
[1727143479239,7.60133,2631.2,2630.9,0.7852]
[1727143479527,3.80078,2631.1,2630.9,0.7852]
[1727143482015,3.80066,2631.2,2630.9,0.7852]
[1727143482016,3.80083,2631.0,2630.9,0.7852]
[1727143484330,3.80105,2630.9,2630.5,0.7795]
[1727143484507,3.80105,2630.9,2630.5,1.62391604]
[1727143484702,3.80083,2631.0,2630.5,1.62391604]
[1727143486706,3.80061,2631.2,2630.7,0.7795]
[1727143486908,3.80084,2631.0,2630.7,0.7795]
[1727143487098,3.80061,2631.2,2630.7,0.7795]
[1727143487099,7.60129,2631.2,2630.7,0.7795]
[1727143487300,3.80061,2631.2,2630.9,0.7795]
[1727143487634,3.80071,2631.1,2630.9,0.7795]
[1727143488922,3.80061,2631.2,2630.9,0.7795]
[1727143489130,3.80083,2631.0,2630.9,0.7795]
[1727143490127,3.80061,2631.2,2630.9,0.7795]
[1727143490327,3.80071,2631.1,2630.9,0.7795]
[1727143493542,3.80061,2631.2,2630.9,0.7795]
[1727143493899,1.55520312,2631.4,2630.9,0.7795]
[1727143494236,3.80002,2631.6,2631.1,0.7795]
[1727143494651,3.80051,2631.3,2631.1,0.7795]
[1727143497721,1.55520312,2631.4,2631.1,0.7795]
[1727143497907,3.80044,2631.3,2631.1,0.7795]
[1727143500960,3.80078,2631.1,2630.9,0.8075]
[1727143501450,7.6016,2631.1,2630.9,0.8075]
[1727143501624,3.80078,2631.1,2630.9,0.8075]
[1727143501830,7.60157,2631.1,2630.9,0.8075]
[1727143502058,1.55520312,2631.2,2630.9,0.8075]
[1727143502249,3.80046,2631.3,2630.9,0.8075]
[1727143503064,3.80078,2631.1,2630.9,0.8075]
[1727143503641,3.80078,2631.1,2630.5,0.8075]
[1727143503846,3.80078,2631.1,2630.6,0.760911]
[1727143504364,3.80088,2631.0,2630.6,0.760911]
[1727143505070,3.80078,2631.1,2630.6,0.760911]
[1727143505268,1.55520312,2631.2,2630.8,0.8075]
[1727143505452,5.35566312,2631.3,2630.8,0.8075]
[1727143506361,5.35566312,2631.3,2630.9,0.46847657]
[1727143506868,1.55520312,2631.3,2631.0,0.8075]
[1727143507375,1.55520312,2631.5,2631.2,0.8075]
[1727143507555,5.35520312,2631.6,2631.2,0.8075]
[1727143508584,5.77111762,2631.7,2631.2,0.8075]
[1727143508585,1.55520312,2631.5,2631.2,0.8075]
[1727143508796,5.35532312,2631.5,2631.2,1.2759337]
[1727143508944,5.35532312,2631.5,2631.2,0.8075]
[1727143510357,1.55520312,2631.5,2631.2,0.8075]
[1727143511341,5.35533312,2631.5,2631.2,0.8075]
[1727143511987,3.8004,2631.3,2631.2,0.8075]
[1727143512158,3.8004,2631.3,2630.8,0.8075]
[1727143512485,3.8004,2631.3,2630.9,0.460874]
[1727143512688,3.80054,2631.2,2630.8,0.8075]
[1727143513111,1.55520312,2631.1,2630.3,0.8075]
[1727143513390,3.80123,2630.8,2630.3,0.8075]
[1727143513950,1.55520312,2630.9,2630.3,0.8075]
[1727143514146,5.35617312,2631.0,2630.5,0.7769]
[1727143514351,3.80097,2631.0,2630.5,0.7769]
[1727143514966,5.35617312,2631.0,2630.5,0.7769]
[1727143515382,1.55520312,2631.1,2630.7,0.7769]
[1727143515585,5.35592312,2631.1,2630.8,0.46543295]
[1727143515884,5.35592312,2631.1,2630.5,0.7769]
[1727143515885,3.80107,2630.9,2630.5,0.7769]
[1727143516256,5.35627312,2630.9,2630.5,0.7769]
[1727143516681,3.80116,2630.8,2630.5,0.7769]
[1727143517070,3.80127,2630.7,2630.5,0.7769]
[1727143517775,5.35647312,2630.7,2630.3,0.7769]
[1727143518105,5.35669312,2630.6,2630.3,0.7769]
[1727143518673,3.80149,2630.6,2630.3,0.7769]
[1727143518872,5.35654312,2630.7,2630.3,1.17120167]
[1727143520064,1.55520312,2630.7,2630.3,8.13905839]
[1727143520600,1.55520312,2630.8,2630.4,0.7769]
[1727143520799,5.77200914,2630.9,2630.4,0.7769]
[1727143520800,1.55520312,2630.7,2630.4,0.7769]
[1727143522923,1.55520312,2630.7,2630.4,4.57859]
[1727143523225,1.55520312,2630.9,2630.6,0.7769]
[1727143523516,1.55520312,2630.9,2630.6,7.82031844]
[1727143523679,1.55520312,2630.9,2630.7,0.7769]
[1727143523882,1.55520312,2631.0,2630.7,0.7769]
[1727143524081,1.55520312,2631.0,2630.7,2.05848413]
[1727143524317,1.55520312,2631.0,2630.7,2.13449875]
[1727143524909,1.55520312,2631.0,2630.7,2.05848413]
[1727143525114,1.55520312,2631.0,2630.7,0.7769]
[1727143525420,1.55520312,2631.0,2630.8,7.04321131]
[1727143525626,6.5622301,2631.6,2630.8,7.04321131]
[1727143525627,1.55520312,2631.2,2630.9,4.57788]
[1727143525824,1.55520312,2631.2,2630.9,4.65388828]
[1727143526007,1.55520312,2631.3,2631.0,1.1621085]
[1727143527397,1.55520312,2631.2,2631.0,1.1621085]
[1727143527583,1.55520312,2631.2,2630.9,0.85290804]
[1727143527784,1.55520312,2631.3,2631.0,3.80078]
[1727143528009,1.55520312,2631.3,2631.2,0.7769]
[1727143529690,1.55520312,2631.3,2630.9,3.80089]
[1727143529691,1.55520312,2631.3,2630.9,0.8199]
[1727143530100,1.55520312,2631.2,2630.9,0.8199]
[1727143531329,1.55520312,2631.1,2630.6,0.8199]
[1727143531489,1.55520312,2631.1,2630.6,0.89591484]
[1727143531686,0.16529534,2631.0,2630.6,0.89591484]
[1727143532017,0.16529534,2631.0,2630.7,3.80118]
[1727143532220,1.55520312,2631.2,2630.8,0.54571958]
[1727143532405,0.16446093,2631.1,2630.8,0.54571958]
[1727143536719,0.16446093,2631.1,2630.9,0.8199]
[1727143537232,0.16446093,2631.1,2630.9,8.49768714]
[1727143537392,1.55520312,2631.3,2631.0,0.07600707]
[1727143537593,0.16446093,2631.2,2630.9,8.49768665]
[1727143537807,1.55520312,2631.3,2631.0,1.28935805]
[1727143538019,0.16446093,2631.2,2631.0,3.80081]
[1727143538208,1.55520312,2631.3,2631.0,3.80081]
[1727143538410,0.16446093,2631.2,2630.9,0.8199]
[1727143538610,1.55520312,2631.3,2630.9,4.69686635]
[1727143538812,0.16446093,2631.2,2630.9,4.69686635]
[1727143539046,1.55520312,2631.3,2631.0,5.01410926]
[1727143539348,0.16446093,2631.2,2631.0,5.01410926]
[1727143539646,1.55520312,2631.3,2631.0,5.01410926]
[1727143539952,0.16446093,2631.2,2631.1,3.80069]
[1727143540122,0.16446093,2631.2,2631.1,8.75777728]
[1727143540549,1.55520312,2631.4,2631.1,8.75777728]
[1727143540712,0.16446093,2631.2,2631.1,8.75777728]
[1727143540915,1.55520312,2631.4,2631.1,8.75777728]
[1727143541114,0.1646786,2631.2,2631.1,8.75777728]
[1727143541452,0.1646786,2631.2,2631.1,4.95708728]
[1727143541747,1.55520312,2631.4,2631.1,1.79097056]
[1727143541924,0.1646786,2631.2,2631.1,0.8199]
[1727143542129,1.55520312,2631.3,2630.9,0.8199]
[1727143542306,0.1646786,2631.2,2630.9,0.8199]
[1727143542507,0.1646786,2631.2,2630.9,1.281998]
[1727143542712,0.806,2631.1,2630.6,0.8199]
[1727143543011,2.52588172,2631.1,2630.6,0.8199]
[1727143543208,5.35612312,2631.0,2630.6,0.8199]
[1727143543525,9.15709312,2631.0,2630.4,6.80168]
[1727143543729,0.1646786,2630.9,2630.4,7.98346017]
[1727143544252,3.8013,2630.7,2630.3,1.21420167]
[1727143544452,0.16464751,2630.6,2630.3,0.8199]
[1727143544656,1.55520312,2630.7,2630.3,0.8199]
[1727143544813,0.16455866,2630.6,2630.3,0.8199]
[1727143545427,0.16455866,2630.6,2630.1,0.8192]
[1727143545625,3.96599866,2630.6,2630.1,4.62132]
[1727143545820,5.52120178,2630.6,2630.1,4.62132]
[1727143546126,3.80172,2630.4,2629.9,0.8192]
[1727143546551,0.16446092,2630.3,2629.9,0.8192]
[1727143548648,3.80201,2630.2,2629.9,0.8192]
[1727143548864,3.80201,2630.2,2629.8,0.0288468]
[1727143549060,3.80228,2630.0,2629.8,0.0288468]
[1727143549413,0.16446092,2629.9,2629.8,0.0288468]
[1727143551037,3.80217,2630.1,2629.8,0.0288468]
[1727143551252,0.16446092,2630.0,2629.8,0.0288468]
[1727143551559,3.96674092,2630.0,2629.8,0.0288468]
[1727143555155,0.16446092,2630.0,2629.8,0.0288468]
[1727143555518,3.80215,2630.1,2629.8,0.0288468]
[1727143555835,0.16354107,2630.0,2629.8,0.0288468]
[1727143556585,4.59602,2629.9,2629.8,0.0288468]
[1727143556873,4.75956107,2629.9,2629.8,0.0288468]
[1727143557442,0.16354107,2629.9,2629.8,0.0288468]
[1727143557619,7.60416,2630.2,2629.8,0.8480468]
[1727143557828,0.16354107,2630.1,2629.8,0.8480468]
[1727143558539,0.16354107,2630.1,2629.8,1.62974815]
[1727143558750,0.16354107,2630.1,2629.8,4.79586487]
[1727143558955,4.59533,2630.4,2629.8,8.59835487]
[1727143559256,5.35665312,2630.6,2629.9,3.87846082]
[1727143559257,6.12015312,2630.6,2629.9,3.87846082]
[1727143559481,3.96504772,2630.5,2629.9,3.80242]
[1727143559759,3.96504772,2630.5,2630.0,1.24007749]
[1727143560146,3.8017,2630.4,2630.0,1.24007749]
[1727143560346,3.80187,2630.3,2630.0,1.24007749]
[1727143560557,0.1635633,2630.3,2629.8,5.5082763]
[1727143562033,3.9654033,2630.3,2629.8,1.7057863]
[1727143562228,3.80202,2630.2,2629.8,0.8480468]
[1727143562430,4.56552,2630.2,2629.8,0.8480468]
[1727143562752,4.56552,2630.2,2629.8,0.0288468]
[1727143562961,0.1635633,2630.1,2629.8,0.0288468]
[1727143563548,3.80233,2630.0,2629.8,0.0288468]
[1727143563751,4.56592,2629.9,2629.8,0.0288468]
[1727143564256,4.7294833,2629.9,2629.8,0.0288468]
[1727143565446,5.2794833,2629.9,2629.8,0.0288468]
[1727143568355,4.7294833,2629.9,2629.8,0.0288468]
[1727143568550,3.9659833,2629.9,2629.8,0.0288468]
[1727143569265,0.1635633,2629.9,2629.8,0.0288468]
[1727143569562,3.9659833,2629.9,2629.8,0.0288468]
[1727143569751,0.1635633,2629.9,2629.8,0.0288468]
[1727143573594,3.9659833,2629.9,2629.8,0.0288468]
[1727143576907,3.9659833,2629.9,2629.3,3.80318]
[1727143576908,0.1635633,2629.9,2629.3,3.80318]
[1727143577116,0.1635633,2629.9,2629.5,3.803]
[1727143577314,0.16052153,2629.9,2629.5,3.803]
[1727143577675,0.16052153,2629.9,2629.8,0.7545]
[1727143577874,3.80175,2630.4,2629.8,7.79922712]
[1727143578104,0.15762072,2630.3,2629.9,1.16018271]
[1727143578412,0.15762072,2630.3,2629.9,1.23621994]
[1727143578910,0.06627461,2631.5,2630.3,3.80174]
[1727143578911,4.56362,2631.0,2630.3,3.80174]
[1727143579117,3.80092,2631.0,2630.6,0.7545]
[1727143581221,3.80029,2631.4,2630.9,3.16611672]
[1727143581434,3.80041,2631.3,2631.0,0.7545]
[1727143581791,3.80055,2631.2,2631.0,0.7545]
[1727143581990,7.60067,2631.4,2631.0,0.7545]
[1727143583204,7.60066,2631.4,2631.0,0.7545]
[1727143583385,3.80027,2631.4,2631.0,0.7545]
[1727143584500,7.60065,2631.4,2631.0,0.7545]
[1727143584874,0.1523667,2631.3,2631.0,0.7545]
[1727143585078,0.1523667,2631.3,2631.0,1.21766263]
[1727143587118,0.1523667,2631.3,2631.0,0.7545]
[1727143587820,0.1523667,2631.3,2631.1,3.24212305]
[1727143587992,0.1523667,2631.3,2631.1,7.04269305]
[1727143588201,3.79972,2631.8,2631.1,7.04269305]
[1727143588397,0.1523667,2631.2,2631.1,7.04269305]
[1727143588584,3.79972,2631.8,2631.1,8.20188386]
[1727143588780,0.1523667,2631.2,2631.1,8.12587753]
[1727143588986,3.79972,2631.8,2631.1,8.12587753]
[1727143589244,3.79945,2632.0,2631.5,3.16611672]
[1727143589382,0.1523667,2631.7,2631.6,3.79996]
[1727143589594,0.0377576,2632.1,2631.7,3.16611672]
[1727143589921,0.0377576,2632.1,2631.6,4.55998]
[1727143590428,0.0377576,2632.1,2631.6,0.76002]
[1727143590824,0.0377576,2632.1,2631.7,0.7921]
[1727143591141,0.0377576,2632.1,2631.7,7.8339289]
[1727143591340,0.0377576,2632.1,2631.8,1.23939089]
[1727143592337,0.0377576,2632.1,2631.7,0.7921]
[1727143593540,0.0377576,2632.1,2631.8,0.07598221]
[1727143595002,0.0377576,2632.1,2631.7,0.7921]
[1727143595198,0.0377576,2632.1,2631.7,0.86808223]
[1727143595943,0.0377576,2632.1,2631.8,3.79967]
[1727143596236,0.0377576,2632.1,2631.9,0.85936909]
[1727143596600,0.0377576,2632.1,2631.9,0.7833869]
[1727143597727,0.15343353,2632.0,2631.9,0.7833869]
[1727143598041,0.15343353,2632.0,2631.7,0.7921]
[1727143598248,0.0377576,2632.1,2631.7,0.7921]
[1727143598450,0.15343353,2632.0,2631.7,0.7921]
[1727143599313,0.15343353,2632.0,2631.5,3.80006]
[1727143599314,4.78591353,2632.0,2631.5,0.7921]
[1727143599908,4.78591353,2632.0,2631.6,0.07599323]
[1727143599909,3.95291353,2632.0,2631.6,0.07599323]
[1727143600146,3.95291353,2632.0,2631.5,0.7921]
[1727143600646,3.95291353,2632.0,2631.2,3.80047]
[1727143600647,3.80014,2631.5,2631.2,0.7921]
[1727143600850,3.80055,2631.2,2631.0,0.7921]
[1727143601058,3.80055,2631.2,2630.7,0.7921]
[1727143601347,0.15343353,2631.1,2630.7,0.7921]
[1727143602548,0.15343353,2631.1,2630.7,1.251463]
[1727143602708,0.15343353,2631.1,2630.7,5.052703]
[1727143602909,3.80028,2631.4,2630.7,5.052703]
[1727143603110,0.15298293,2631.3,2630.7,5.052703]
[1727143603748,0.15298293,2631.3,2630.8,3.8770317]
[1727143603911,0.15298293,2631.3,2630.9,0.82946114]
[1727143604108,3.80026,2631.4,2630.9,0.82946114]
[1727143604349,0.15298293,2631.3,2630.7,0.7921]